bitfinex/quotes_BTCUSD_20250711
["timestamp","ask_amount","ask_price","bid_price","bid_amount"]
[1752254084377,0.77743483,117510.0,117500.0,0.68649731]
[1752254084579,0.80263483,117510.0,117500.0,0.68649731]
[1752254084866,1.23822397,117510.0,117500.0,0.60102738]
[1752254085040,0.8130791,117510.0,117500.0,0.60102738]
[1752254085238,0.8130791,117510.0,117500.0,0.59252476]
[1752254085441,0.80287436,117510.0,117500.0,0.60835847]
[1752254085676,0.80287436,117510.0,117500.0,0.57009667]
[1752254085869,1.24890777,117510.0,117500.0,0.57009667]
[1752254086069,0.80287436,117510.0,117500.0,0.56159405]
[1752254086273,0.80287436,117510.0,117500.0,0.53183487]
[1752254086423,0.80287436,117510.0,117500.0,0.52333225]
[1752254086630,0.80287436,117510.0,117500.0,0.51482963]
[1752254086825,1.22804181,117510.0,117500.0,0.51482963]
[1752254087028,1.22804181,117510.0,117500.0,0.50632701]
[1752254087436,1.22804181,117510.0,117500.0,0.49782439]
[1752254087635,1.22804181,117510.0,117500.0,0.46806521]
[1752254087835,1.22804181,117510.0,117500.0,0.45956259]
[1752254088038,1.22804181,117510.0,117500.0,0.19044259]
[1752254088039,1.46257259,117510.0,117500.0,0.19044259]
[1752254088244,1.46257259,117510.0,117500.0,0.18193754]
[1752254088477,1.46257259,117510.0,117500.0,0.15216985]
[1752254088478,1.48810159,117510.0,117500.0,0.15216985]
[1752254088687,1.48810159,117510.0,117500.0,0.1436648]
[1752254088900,0.06824085,117490.0,117480.0,0.0024]
[1752254089098,0.3937,117480.0,117470.0,0.13456]
[1752254089305,0.83446043,117480.0,117470.0,0.13456]
[1752254089543,0.83446043,117480.0,117470.0,0.12605495]
[1752254089882,0.83446043,117480.0,117470.0,0.08778221]
[1752254090303,0.83446043,117480.0,117450.0,0.01456846]
[1752254090512,0.027,117470.0,117460.0,0.13456]
[1752254090738,0.80776043,117470.0,117460.0,0.12605495]
[1752254090941,0.80776043,117470.0,117460.0,0.09628726]
[1752254091149,0.80776043,117470.0,117460.0,0.08778221]
[1752254091378,0.79755246,117470.0,117460.0,0.08778221]
[1752254091585,0.78076043,117470.0,117460.0,0.04950947]
[1752254091792,0.806643,117470.0,117460.0,0.05000708]
[1752254091998,1.26894343,117470.0,117460.0,0.00149761]
[1752254092217,1.26894343,117470.0,117450.0,0.21998993]
[1752254092218,0.34,117460.0,117450.0,0.21998993]
[1752254092421,0.78076043,117460.0,117450.0,0.21148488]
[1752254092643,1.24306086,117460.0,117450.0,0.13456]
[1752254092870,1.24306086,117460.0,117450.0,0.09628726]
[1752254093068,1.24306086,117460.0,117440.0,0.14815495]
[1752254093271,1.21120086,117450.0,117440.0,0.23358488]
[1752254093525,1.21636086,117450.0,117440.0,0.22507983]
[1752254093748,0.80746043,117450.0,117440.0,0.13456]
[1752254093956,1.24306086,117450.0,117440.0,0.12605495]
[1752254094162,0.34,117440.0,117430.0,0.0004]
[1752254094374,0.31961112,117440.0,117430.0,0.13456]
[1752254094623,0.75834155,117440.0,117430.0,0.13456]
[1752254094838,0.75834155,117440.0,117430.0,0.12605022]
[1752254095000,0.84548384,117440.0,117430.0,0.0877562]
[1752254095397,0.84448384,117440.0,117430.0,0.07924642]
[1752254095725,0.84448384,117440.0,117420.0,0.14790044]
[1752254095726,0.79078384,117440.0,117420.0,0.14790044]
[1752254095913,0.43560043,117430.0,117420.0,0.22482059]
[1752254096076,0.43763043,117430.0,117420.0,0.22204993]
[1752254097123,0.43812742,117430.0,117420.0,0.22204993]
[1752254097362,0.34049699,117430.0,117420.0,0.22529993]
[1752254097563,0.34249699,117430.0,117420.0,0.28015993]
[1752254100367,0.34249699,117430.0,117420.0,0.14659993]
[1752254100560,0.34249699,117430.0,117420.0,0.28816903]
[1752254100931,0.34049699,117430.0,117420.0,0.28603993]
[1752254101139,0.00049699,117430.0,117420.0,0.48191708]
[1752254101350,0.02473076,117440.0,117430.0,0.22861422]
[1752254101568,0.02473076,117440.0,117430.0,0.14589919]
[1752254101770,0.342,117450.0,117440.0,0.0568]
[1752254101926,0.342,117450.0,117440.0,0.14749993]
[1752254102130,0.342,117450.0,117440.0,0.14962867]
[1752254102338,0.002,117450.0,117440.0,0.31779965]
[1752254102536,0.002,117450.0,117440.0,0.39085534]
[1752254102537,0.03078407,117450.0,117440.0,0.39085534]
[1752254102742,0.03078407,117450.0,117440.0,0.44937003]
[1752254102743,0.002,117450.0,117440.0,0.44937003]
[1752254102952,0.002,117470.0,117460.0,0.0581]
[1752254103192,0.002,117470.0,117460.0,0.28743831]
[1752254103334,0.002,117470.0,117460.0,0.28530993]
[1752254103542,0.03206082,117470.0,117460.0,0.28855993]
[1752254103749,0.342,117470.0,117460.0,0.28855993]
[1752254103995,0.002,117470.0,117460.0,0.53188497]
[1752254104206,0.002,117470.0,117460.0,0.26334078]
[1752254104375,0.002,117470.0,117460.0,0.40306078]
[1752254104796,0.002,117470.0,117460.0,0.74359078]
[1752254105252,0.002,117470.0,117460.0,0.74347078]
[1752254105462,0.002,117470.0,117460.0,0.74447078]
[1752254105665,0.002,117470.0,117460.0,0.72992993]
[1752254105666,0.43760043,117470.0,117460.0,0.72992993]
[1752254105833,0.002,117470.0,117460.0,0.72992993]
[1752254106272,0.03062851,117470.0,117460.0,0.72992993]
[1752254106691,0.03062851,117470.0,117460.0,0.92325497]
[1752254106692,0.002,117470.0,117460.0,0.92325497]
[1752254106891,0.002,117470.0,117460.0,0.74547078]
[1752254107318,0.002,117470.0,117460.0,0.75398431]
[1752254107523,0.002,117470.0,117460.0,0.74547078]
[1752254108915,0.03195171,117470.0,117460.0,0.74547078]
[1752254109927,0.03195171,117470.0,117460.0,0.92425504]
[1752254110175,0.02136305,117470.0,117460.0,0.94979469]
[1752254110311,0.002,117490.0,117480.0,0.0555]
[1752254110520,0.002,117490.0,117480.0,0.62512795]
[1752254110732,0.002,117490.0,117480.0,0.62620993]
[1752254110935,9.228e-05,117490.0,117480.0,0.62620993]
[1752254111347,0.7654877,117500.0,117490.0,0.0285]
[1752254111552,0.7654877,117500.0,117490.0,0.45437993]
[1752254111751,0.7654877,117500.0,117490.0,0.45973993]
[1752254112184,0.7654877,117500.0,117490.0,0.43123993]
[1752254112185,0.79483797,117500.0,117490.0,0.43123993]
[1752254112521,0.79678797,117500.0,117490.0,0.42587993]
[1752254112724,1.2343884,117500.0,117490.0,0.56519993]
[1752254112930,1.2374984,117500.0,117490.0,0.56519993]
[1752254113523,1.2374984,117500.0,117490.0,0.56511993]
[1752254113524,1.2633984,117500.0,117490.0,0.56511993]
[1752254114142,0.80189797,117500.0,117490.0,0.56511993]
[1752254114353,1.2374984,117500.0,117490.0,0.56511993]
[1752254114494,0.80189797,117500.0,117490.0,0.56511993]
[1752254115514,0.79878797,117500.0,117490.0,0.56511993]
[1752254116541,0.80289797,117500.0,117490.0,0.56479993]
[1752254116749,0.85999797,117500.0,117490.0,0.56479993]
[1752254117285,1.2955984,117500.0,117490.0,0.56479993]
[1752254117464,0.85999797,117500.0,117490.0,0.56479993]
[1752254117847,0.79978797,117500.0,117490.0,0.56479993]
[1752254118214,0.79978797,117500.0,117490.0,0.56694993]
[1752254119010,0.03235027,117500.0,117490.0,0.48953993]
[1752254119234,0.03235027,117500.0,117490.0,0.62817993]
[1752254119811,0.03235027,117500.0,117490.0,0.86294803]
[1752254120013,0.03235027,117500.0,117490.0,0.69272078]
[1752254120014,0.03135027,117500.0,117490.0,0.69272078]
[1752254120182,0.03135027,117500.0,117490.0,1.07553939]
[1752254120383,0.03235027,117500.0,117490.0,0.75816078]
[1752254120583,0.03235027,117500.0,117490.0,0.89684078]
[1752254120787,0.37135027,117500.0,117490.0,0.89684078]
[1752254120992,0.8069507,117500.0,117490.0,0.83225993]
[1752254121220,0.7967466,117500.0,117490.0,0.83225993]
[1752254121827,0.36114617,117500.0,117490.0,0.83225993]
[1752254122761,0.01914617,117500.0,117490.0,0.83225993]
[1752254122963,0.36014617,117500.0,117490.0,0.83225993]
[1752254123170,0.34,117500.0,117490.0,0.83225993]
[1752254123611,0.34,117500.0,117490.0,0.83425993]
[1752254123822,0.34,117500.0,117490.0,0.83525993]
[1752254125264,0.03159347,117510.0,117490.0,0.83525993]
[1752254125481,0.4671939,117510.0,117500.0,0.09076758]
[1752254125630,0.03159347,117510.0,117500.0,0.15391758]
[1752254125834,0.03159347,117510.0,117500.0,0.49434758]
[1752254126145,0.03159347,117510.0,117500.0,0.49221993]
[1752254126512,0.03159347,117510.0,117500.0,0.49321993]
[1752254126865,0.01118707,117510.0,117500.0,0.49321993]
[1752254127067,0.34,117510.0,117500.0,0.49221993]
[1752254127998,0.34,117510.0,117500.0,0.55676078]
[1752254128733,0.34,117520.0,117510.0,0.30184904]
[1752254128943,0.34,117520.0,117510.0,0.48732078]
[1752254129098,0.34,117520.0,117510.0,0.84795053]
[1752254129303,0.34,117520.0,117510.0,0.83093078]
[1752254129500,0.36892239,117520.0,117510.0,0.83093078]
[1752254129704,0.02892239,117520.0,117510.0,0.83093078]
[1752254130045,0.001,117520.0,117510.0,0.83093078]
[1752254130202,0.002,117520.0,117510.0,0.83093078]
[1752254131252,0.33379842,117530.0,117510.0,0.94252642]
[1752254131445,0.43560043,117540.0,117530.0,0.0287]
[1752254131643,0.43560043,117540.0,117530.0,0.39283993]
[1752254131644,0.02987572,117540.0,117530.0,0.39283993]
[1752254131841,0.43560043,117540.0,117530.0,0.39283993]
[1752254132038,0.43560043,117540.0,117530.0,0.73638993]
[1752254132667,0.43560043,117540.0,117530.0,0.73653919]
[1752254132869,0.002,117550.0,117530.0,0.75783919]
[1752254133070,0.002,117550.0,117540.0,0.21178078]
[1752254133283,0.002,117550.0,117540.0,0.21393078]
[1752254133498,0.002,117550.0,117540.0,0.72439562]
[1752254133731,0.002,117550.0,117540.0,0.55424078]
[1752254134795,0.32160095,117560.0,117540.0,0.55424078]
[1752254135001,0.32160095,117560.0,117550.0,0.39742668]
[1752254135205,0.43755043,117560.0,117550.0,0.70226993]
[1752254135415,0.43755043,117560.0,117550.0,0.71804942]
[1752254135619,0.43755043,117560.0,117550.0,0.72019942]
[1752254136032,0.43560043,117560.0,117550.0,0.72019942]
[1752254136237,0.43560043,117560.0,117550.0,0.75220942]
[1752254136442,0.43760043,117570.0,117550.0,0.78410942]
[1752254136651,0.43760043,117570.0,117560.0,0.00533657]
[1752254136846,0.77760043,117570.0,117560.0,0.10869599]
[1752254137050,0.77955043,117570.0,117560.0,0.44573599]
[1752254137254,0.80826324,117570.0,117560.0,0.44360942]
[1752254137664,0.80826324,117570.0,117560.0,0.44145942]
[1752254137872,0.87077324,117570.0,117560.0,0.44145942]
[1752254138085,0.87077324,117570.0,117560.0,0.57977942]
[1752254138495,0.86877324,117570.0,117560.0,0.57977942]
[1752254138795,0.86877324,117570.0,117560.0,0.35602949]
[1752254139164,0.89428324,117570.0,117560.0,0.47857]
[1752254139603,0.89428324,117570.0,117560.0,0.47006979]
[1752254139837,0.89428324,117570.0,117560.0,0.46156958]
[1752254140071,0.89428324,117570.0,117560.0,0.29349885]
[1752254140072,1.46808367,117570.0,117560.0,0.29349885]
[1752254140280,1.46808367,117570.0,117560.0,0.28499864]
[1752254140715,1.56805445,117570.0,117560.0,0.2467477]
[1752254140929,0.0584,117550.0,117540.0,0.1402]
[1752254141147,0.3984,117540.0,117530.0,0.13834926]
[1752254141380,0.83925043,117540.0,117530.0,0.00014926]
[1752254141590,0.0584,117530.0,117520.0,0.13180905]
[1752254141824,0.49925043,117530.0,117520.0,0.13195837]
[1752254142032,0.97741043,117530.0,117520.0,0.00014932]
[1752254142250,0.97741043,117530.0,117510.0,0.13816]
[1752254142251,0.34,117520.0,117510.0,0.13816]
[1752254142473,0.83615043,117520.0,117510.0,0.13816]
[1752254142695,0.83925043,117520.0,117510.0,0.13816]
[1752254143315,0.77775043,117520.0,117510.0,0.22358993]
[1752254143733,0.78085043,117520.0,117510.0,0.22358993]
[1752254144302,0.34525,117520.0,117510.0,0.22358993]
[1752254144504,0.77775043,117520.0,117510.0,0.22358993]
[1752254145237,0.78085043,117520.0,117510.0,0.22358993]
[1752254145395,0.78085043,117520.0,117510.0,0.21508972]
[1752254145796,0.80673631,117520.0,117510.0,0.07692715]
[1752254146042,1.30073674,117520.0,117510.0,0.138]
[1752254146249,0.86513631,117520.0,117510.0,0.12949722]
[1752254146630,0.86513631,117520.0,117510.0,0.12099444]
[1752254147101,0.86513631,117520.0,117510.0,0.11249166]
[1752254147411,0.42953588,117520.0,117510.0,0.10398888]
[1752254147618,0.86813631,117520.0,117510.0,0.10398888]
[1752254147838,0.86813631,117520.0,117510.0,0.0954861]
[1752254148296,0.86813631,117520.0,117510.0,0.08698332]
[1752254148542,0.86813631,117520.0,117510.0,0.07848054]
[1752254148996,0.86813631,117520.0,117510.0,0.06997776]
[1752254149455,0.86813631,117520.0,117510.0,0.06147498]
[1752254149902,0.86813631,117520.0,117510.0,0.0529722]
[1752254150284,0.85793211,117520.0,117510.0,0.04446942]
[1752254150487,0.85962211,117520.0,117510.0,0.04446942]
[1752254150733,0.85962211,117520.0,117510.0,0.03596664]
[1752254151129,0.85962211,117520.0,117510.0,0.02746386]
[1752254151309,0.88514211,117520.0,117510.0,0.02746386]
[1752254151516,0.88514211,117520.0,117510.0,0.01896108]
[1752254151724,0.88514211,117520.0,117500.0,0.00214949]
[1752254151957,0.49970043,117510.0,117500.0,0.13986949]
[1752254152109,0.93729086,117510.0,117490.0,0.204]
[1752254152308,0.93729086,117510.0,117500.0,0.13768]
[1752254152309,0.06609,117510.0,117500.0,0.13768]
[1752254152649,0.431614,117510.0,117490.0,0.33332567]
[1752254153005,0.431614,117510.0,117490.0,0.32482174]
[1752254153513,0.77560043,117500.0,117490.0,0.1378296]
[1752254153727,0.77759043,117500.0,117490.0,0.1378296]
[1752254153945,0.77759043,117500.0,117480.0,0.002]
[1752254153946,1.27788086,117500.0,117480.0,0.002]
[1752254154160,1.27788086,117500.0,117480.0,0.0875796]
[1752254154161,0.77560043,117490.0,117480.0,0.0875796]
[1752254154368,0.77759043,117490.0,117480.0,0.2251396]
[1752254155354,0.77759043,117490.0,117480.0,0.2282696]
[1752254155512,0.056224,117510.0,117480.0,0.2623996]
[1752254155909,0.34,117500.0,117490.0,0.12068777]
[1752254156118,0.46148631,117520.0,117490.0,0.12241777]
[1752254156330,0.34,117510.0,117500.0,0.17067]
[1752254156553,0.34,117510.0,117500.0,0.25822993]
[1752254157383,0.02488419,117520.0,117500.0,0.25822993]
[1752254157585,0.77560043,117510.0,117500.0,0.25822993]
[1752254159438,0.77560043,117510.0,117500.0,0.22802993]
[1752254160239,0.34,117510.0,117500.0,0.22802993]
[1752254160448,0.78037043,117510.0,117500.0,0.1289353]
[1752254160650,0.34,117500.0,117480.0,0.00214967]
[1752254160864,0.77775043,117490.0,117480.0,0.0875796]
[1752254161065,0.78037043,117490.0,117480.0,0.13922967]
[1752254161261,0.81097043,117490.0,117480.0,0.13922967]
[1752254162087,0.81097043,117490.0,117480.0,0.14022967]
[1752254162295,0.84187043,117490.0,117480.0,0.13172497]
[1752254162489,0.84187043,117490.0,117480.0,0.13072497]
[1752254162694,0.84187043,117490.0,117480.0,0.12221994]
[1752254163118,0.84187043,117490.0,117480.0,0.11371491]
[1752254163530,0.84187043,117490.0,117480.0,0.10520988]
[1752254164099,0.84187043,117490.0,117480.0,0.09670485]
[1752254164345,0.84187043,117490.0,117480.0,0.08819982]
[1752254165452,0.77775043,117490.0,117480.0,0.08819982]
[1752254167225,0.77775043,117490.0,117480.0,0.09032982]
[1752254167634,0.77775043,117490.0,117480.0,0.08819982]
[1752254169353,0.77775043,117490.0,117480.0,0.08755993]
[1752254169559,0.77560043,117490.0,117480.0,0.42621993]
[1752254169682,0.34,117490.0,117480.0,0.42621993]
[1752254169883,0.77560043,117490.0,117480.0,0.42621993]
[1752254170307,0.76539452,117490.0,117480.0,0.42621993]
[1752254170595,0.76539452,117490.0,117480.0,0.39371993]
[1752254172317,0.76539452,117490.0,117480.0,0.35874993]
[1752254172318,0.76746452,117490.0,117480.0,0.35874993]
[1752254173226,0.83347452,117490.0,117480.0,0.35874993]
[1752254173835,0.80207452,117490.0,117480.0,0.35874993]
[1752254174457,0.78166087,117490.0,117480.0,0.35874993]
[1752254174690,0.81076087,117490.0,117480.0,0.27332]
[1752254180280,0.8005539,117490.0,117480.0,0.27332]
[1752254180979,0.7714539,117490.0,117480.0,0.27332]
[1752254181160,0.8035539,117490.0,117480.0,0.27332]
[1752254182200,0.8035539,117490.0,117480.0,0.28917426]
[1752254182375,0.78313937,117490.0,117480.0,0.28917426]
[1752254182931,0.78313937,117490.0,117480.0,0.27332]
[1752254183923,0.75103937,117490.0,117480.0,0.27332]
[1752254184120,0.74832937,117490.0,117480.0,0.27332]
[1752254185731,0.71642937,117490.0,117480.0,0.27332]
[1752254186142,0.27875894,117490.0,117480.0,0.36409993]
[1752254186345,0.71435937,117490.0,117480.0,0.42709993]
[1752254187535,0.71435937,117490.0,117480.0,0.36409993]
[1752254188154,0.71633937,117490.0,117480.0,0.36409993]
[1752254188359,0.27875894,117490.0,117480.0,0.36085993]
[1752254188518,0.71435937,117490.0,117480.0,0.36409993]
[1752254188723,0.71435937,117490.0,117480.0,0.42639993]
[1752254189119,0.27875894,117490.0,117480.0,0.42639993]
[1752254189889,0.70415354,117490.0,117480.0,0.44226584]
[1752254190297,0.69394768,117490.0,117480.0,0.44226584]
[1752254190455,0.67353596,117490.0,117480.0,0.44226584]
[1752254190648,0.23793553,117490.0,117480.0,0.44226584]
[1752254190858,0.67353596,117490.0,117480.0,0.44226584]
[1752254191929,0.67353596,117490.0,117480.0,0.44226722]
[1752254192900,0.23793553,117490.0,117480.0,0.44226722]
[1752254193055,0.67353596,117490.0,117480.0,0.44226722]
[1752254193267,0.67353596,117490.0,117480.0,0.44226615]
[1752254193623,0.67353596,117490.0,117480.0,0.44226658]
[1752254197613,0.67353596,117490.0,117480.0,0.37996658]
[1752254197762,0.67551596,117490.0,117480.0,0.37996658]
[1752254198465,0.67551596,117490.0,117480.0,0.37672658]
[1752254198466,0.65312287,117490.0,117480.0,0.37672658]
[1752254198723,0.65312287,117490.0,117480.0,0.37992658]
[1752254199454,0.65510287,117490.0,117480.0,0.10129658]
[1752254199660,0.71820287,117490.0,117480.0,0.23849658]
[1752254199873,0.7079959,117490.0,117480.0,0.23849658]
[1752254200124,0.7107859,117490.0,117480.0,0.23849658]
[1752254200330,0.70057897,117490.0,117480.0,0.23849658]
[1752254200960,0.70257897,117490.0,117480.0,0.23849658]
[1752254201169,0.63668897,117490.0,117480.0,0.23849658]
[1752254201372,0.63668897,117490.0,117480.0,0.22999127]
[1752254201583,0.63668897,117490.0,117480.0,0.23215127]
[1752254201788,0.63470897,117490.0,117480.0,0.29725127]
[1752254206205,0.63470897,117490.0,117480.0,0.23535127]
[1752254206393,0.6162857,117490.0,117480.0,0.23535127]
[1752254206561,0.6162857,117490.0,117480.0,0.22999127]
[1752254208895,0.18068527,117490.0,117480.0,0.09279127]
[1752254209095,0.6162857,117490.0,117480.0,0.23487127]
[1752254209768,0.60607905,117490.0,117480.0,0.23487127]
[1752254209989,0.43959043,117490.0,117480.0,0.23487127]
[1752254210372,0.43560043,117490.0,117480.0,0.23487127]
[1752254210604,0.43560043,117490.0,117480.0,0.22951127]
[1752254211371,0.43560043,117490.0,117480.0,0.23271127]
[1752254211755,0.77560043,117490.0,117480.0,0.23271127]
[1752254212143,0.77560043,117490.0,117480.0,0.22951127]
[1752254213121,0.83970043,117490.0,117480.0,0.09278177]
[1752254213421,0.83970043,117490.0,117480.0,0.22970177]
[1752254213677,0.4041,117490.0,117480.0,0.22970177]
[1752254213891,0.83970043,117490.0,117480.0,0.22970177]
[1752254214105,0.80830043,117490.0,117480.0,0.22970177]
[1752254214548,0.75648675,117490.0,117480.0,0.22970177]
[1752254215519,0.78788675,117490.0,117480.0,0.22970177]
[1752254215734,0.81928675,117490.0,117480.0,0.22970177]
[1752254217540,0.78788675,117490.0,117480.0,0.22970177]
[1752254218468,0.75648675,117490.0,117480.0,0.22970177]
[1752254219542,0.75648675,117490.0,117480.0,0.22970541]
[1752254219972,0.74627992,117490.0,117480.0,0.15278079]
[1752254220193,0.80977992,117490.0,117480.0,0.15278079]
[1752254220411,0.79957307,117490.0,117480.0,0.15278079]
[1752254221948,0.79957307,117490.0,117480.0,0.01586079]
[1752254222154,0.79957307,117490.0,117480.0,0.15238079]
[1752254222591,0.77915861,117490.0,117480.0,0.15238079]
[1752254223039,1.23591074,117490.0,117480.0,0.15238079]
[1752254223251,1.23591074,117490.0,117480.0,0.15774079]
[1752254223252,0.28005818,117490.0,117480.0,0.15774079]
[1752254223458,0.28005818,117490.0,117480.0,0.30657072]
[1752254223459,0.72493446,117490.0,117480.0,0.30657072]
[1752254224683,0.72493446,117490.0,117480.0,0.27477072]
[1752254224857,0.72493446,117490.0,117480.0,0.30657072]
[1752254226160,0.72493446,117490.0,117480.0,0.30657626]
[1752254228859,0.72493446,117490.0,117480.0,0.29807113]
[1752254229913,0.71472784,117490.0,117480.0,0.29807113]
[1752254230161,1.16220412,117490.0,117480.0,0.23467113]
[1752254230366,1.15199724,117490.0,117480.0,0.23467113]
[1752254230570,1.13158342,117490.0,117480.0,0.23467113]
[1752254231410,1.13158342,117490.0,117480.0,0.23251113]
[1752254231833,1.13158342,117490.0,117480.0,0.23450113]
[1752254232050,1.13158342,117490.0,117480.0,0.23251113]
[1752254232265,1.19508342,117490.0,117480.0,0.0073609]
[1752254232487,0.4035,117480.0,117460.0,0.00494]
[1752254232688,0.84967628,117480.0,117470.0,0.12781457]
[1752254233119,0.85097628,117480.0,117470.0,0.11930914]
[1752254233538,0.85097628,117480.0,117470.0,0.11080371]
[1752254233778,0.85097628,117480.0,117470.0,0.10229828]
[1752254233986,1.29715256,117480.0,117470.0,0.10229828]
[1752254234197,1.29715256,117480.0,117470.0,0.09379285]
[1752254234601,1.29715256,117480.0,117470.0,0.08628742]
[1752254235031,1.29715256,117480.0,117470.0,0.07778199]
[1752254235464,1.23365256,117480.0,117470.0,0.06927656]
[1752254235677,1.23365256,117480.0,117470.0,0.07420656]
[1752254235884,1.23365256,117480.0,117470.0,0.06570113]
[1752254236284,1.23365256,117480.0,117470.0,0.0571957]
[1752254236697,1.23365256,117480.0,117470.0,0.04869027]
[1752254236907,0.78617628,117480.0,117470.0,0.1341202]
[1752254237118,0.78617628,117480.0,117470.0,0.1983202]
[1752254237328,1.23235256,117480.0,117470.0,0.1983202]
[1752254237583,1.23235256,117480.0,117470.0,0.1341202]
[1752254239833,1.22214513,117480.0,117470.0,0.1341202]
[1752254240432,1.2119377,117480.0,117470.0,0.1341202]
[1752254241359,1.2119377,117480.0,117470.0,0.1670202]
[1752254242983,1.2119377,117480.0,117470.0,0.1341202]
[1752254242984,0.44617628,117480.0,117470.0,0.1341202]
[1752254243397,0.78617628,117480.0,117470.0,0.1341202]
[1752254243600,0.34,117480.0,117470.0,0.1983202]
[1752254243801,0.78617628,117480.0,117470.0,0.1983202]
[1752254244014,0.76576356,117480.0,117470.0,0.1983202]
[1752254244420,0.76576356,117480.0,117470.0,0.21248753]
[1752254244951,0.31958728,117480.0,117470.0,0.21248753]
[1752254247944,0.75511708,117480.0,117470.0,0.21248753]
[1752254248062,0.65511708,117480.0,117470.0,0.21248753]
[1752254248284,0.21958728,117480.0,117470.0,0.21248753]
[1752254248492,0.65511708,117480.0,117470.0,0.2124863]
[1752254250233,0.21958728,117480.0,117470.0,0.2124863]
[1752254250408,0.20938062,117480.0,117470.0,0.2124863]
[1752254251125,0.7855298,117490.0,117470.0,0.2124863]
[1752254251335,0.35,117490.0,117480.0,0.15399795]
[1752254251536,0.35,117490.0,117480.0,0.17015405]
[1752254252409,0.69,117490.0,117480.0,0.17015405]
[1752254253854,0.691,117490.0,117480.0,0.17015405]
[1752254254057,0.70634534,117490.0,117480.0,0.17015405]
[1752254254293,0.69613988,117490.0,117480.0,0.17015405]
[1752254255153,1.13166968,117490.0,117480.0,0.16802603]
[1752254256341,1.13166968,117490.0,117480.0,0.17015405]
[1752254257975,1.13166968,117490.0,117480.0,0.30631405]
[1752254258182,1.11125794,117490.0,117480.0,0.30418603]
[1752254258379,1.11125794,117490.0,117480.0,0.64465603]
[1752254259037,0.67572814,117490.0,117480.0,0.64465603]
[1752254262777,0.67572814,117490.0,117480.0,0.63580506]
[1752254264162,0.66552367,117490.0,117480.0,0.63580506]
[1752254265065,1.11141252,117490.0,117480.0,0.63580506]
[1752254265460,0.66552367,117490.0,117480.0,0.63580506]
[1752254266547,1.09606718,117490.0,117480.0,0.63580506]
[1752254266705,1.09606718,117490.0,117480.0,0.57230506]
[1752254267830,1.1112897,117490.0,117480.0,0.57230506]
[1752254268634,1.1125897,117490.0,117480.0,0.56685506]
[1752254268832,1.55847855,117490.0,117480.0,0.56153993]
[1752254269032,0.80341137,117490.0,117480.0,0.56153993]
[1752254269396,1.31541022,117490.0,117480.0,0.56153993]
[1752254269847,1.31460022,117490.0,117480.0,0.56153993]
[1752254270055,0.86871137,117490.0,117480.0,0.56153993]
[1752254270442,0.85850557,117490.0,117480.0,0.56153993]
[1752254271226,1.30439442,117490.0,117480.0,0.56153993]
[1752254271427,1.30520442,117490.0,117480.0,0.42589993]
[1752254271676,1.30520442,117490.0,117480.0,0.56153993]
[1752254273781,1.2899819,117490.0,117480.0,0.56153993]
[1752254274215,1.27977541,117490.0,117480.0,0.56153993]
[1752254275285,1.41541541,117490.0,117480.0,0.34047]
[1752254275509,1.41541541,117490.0,117480.0,0.31069911]
[1752254275714,1.41541541,117490.0,117480.0,0.30219315]
[1752254276150,1.41541541,117490.0,117480.0,0.2639163]
[1752254276562,1.41541541,117490.0,117480.0,0.25541034]
[1752254276776,1.41541541,117490.0,117480.0,0.22563945]
[1752254277018,1.41541541,117490.0,117480.0,0.21713349]
[1752254277231,1.41541541,117490.0,117480.0,0.17885664]
[1752254277648,0.0629,117470.0,117460.0,0.00214972]
[1752254277873,0.53984,117470.0,117460.0,0.00214972]
[1752254278105,0.53984,117470.0,117440.0,0.01529697]
[1752254278106,0.0629,117450.0,117440.0,0.13564]
[1752254278317,1.2959777,117450.0,117440.0,0.22121972]
[1752254278547,1.2959777,117450.0,117440.0,0.21271376]
[1752254278754,1.2959777,117450.0,117440.0,0.2042078]
[1752254278959,0.4042,117450.0,117440.0,0.2042078]
[1752254279158,0.84018006,117450.0,117440.0,0.19570184]
[1752254280411,0.86587658,117450.0,117440.0,0.17018396]
[1752254280828,0.86587658,117450.0,117440.0,0.161678]
[1752254281047,0.86587658,117450.0,117440.0,0.162678]
[1752254281251,1.00151658,117450.0,117440.0,0.15416929]
[1752254281663,1.00151658,117450.0,117440.0,0.14566058]
[1752254282088,1.00151658,117450.0,117440.0,0.13715187]
[1752254282503,1.00151658,117450.0,117440.0,0.12864316]
[1752254282988,1.00151658,117450.0,117440.0,0.12013445]
[1752254283185,1.00151658,117450.0,117440.0,0.11162574]
[1752254283573,1.00151658,117450.0,117440.0,0.10311703]
[1752254283972,1.00151658,117450.0,117440.0,0.09460832]
[1752254284515,1.00151658,117450.0,117440.0,0.07807101]
[1752254284882,1.00151658,117450.0,117440.0,0.00114979]
[1752254285250,0.34,117440.0,117430.0,0.13888]
[1752254285472,0.77598006,117440.0,117430.0,0.2265444]
[1752254285671,0.77728006,117440.0,117430.0,0.2265444]
[1752254286149,0.0013,117440.0,117430.0,0.2265444]
[1752254286347,0.77728006,117440.0,117430.0,0.2275444]
[1752254286595,0.77728006,117440.0,117430.0,0.2295444]
[1752254287572,0.84058006,117440.0,117430.0,0.0885144]
[1752254287786,0.84139006,117440.0,117430.0,0.2241544]
[1752254288054,0.97703006,117440.0,117430.0,0.00308447]
[1752254288419,0.83658006,117430.0,117420.0,0.13764]
[1752254288628,0.83788006,117430.0,117420.0,0.22306993]
[1752254289522,0.80728006,117430.0,117420.0,0.22306993]
[1752254289752,0.77728006,117430.0,117420.0,0.22605993]
[1752254289954,0.77828006,117430.0,117420.0,0.22820993]
[1752254291328,0.78028006,117430.0,117420.0,0.22820993]
[1752254291753,0.77898006,117430.0,117420.0,0.22820993]
[1752254292318,0.78028006,117430.0,117420.0,0.22605993]
[1752254292528,0.78028006,117430.0,117420.0,0.22306993]
[1752254292731,0.84418006,117430.0,117420.0,0.22306993]
[1752254293353,0.34,117420.0,117410.0,0.02]
[1752254293572,0.77728006,117420.0,117410.0,0.15564]
[1752254295868,0.77828006,117420.0,117410.0,0.15564]
[1752254296078,0.77698006,117420.0,117410.0,0.11049993]
[1752254296283,0.77698006,117420.0,117410.0,0.31043993]
[1752254298315,0.77828006,117420.0,117410.0,0.24106993]
[1752254298548,0.84218006,117420.0,117410.0,0.24106993]
[1752254299159,0.0662,117420.0,117410.0,0.24106993]
[1752254299275,0.77828006,117420.0,117410.0,0.24405993]
[1752254300885,0.77698006,117420.0,117410.0,0.30883993]
[1752254301278,0.341,117420.0,117410.0,0.30883993]
[1752254301775,0.77698006,117420.0,117410.0,0.30883993]
[1752254303331,0.77698006,117420.0,117410.0,0.27743993]
[1752254304028,0.77698006,117420.0,117410.0,0.30883993]
[1752254304561,0.77698006,117420.0,117410.0,0.24613993]
[1752254305003,0.77828006,117420.0,117410.0,0.24613993]
[1752254305380,0.84188006,117420.0,117410.0,0.24106993]
[1752254306403,0.84269006,117420.0,117410.0,0.15564]